bitfinex-derivatives/quotes_SOLF0:USTF0_20240906
["timestamp","ask_amount","ask_price","bid_price","bid_amount"]
[1725586928499,4.10893293,130.67,130.62,39.71]
[1725586928706,0.05451793,130.66,130.63,0.05490485]
[1725586931100,3.8282,130.64,130.63,0.05490485]
[1725586932002,3.74346338,130.65,130.55,41.0228]
[1725586932204,1.363,130.63,130.55,1.3128]
[1725586932404,0.28172976,130.62,130.5,39.71]
[1725586932614,0.28172976,130.62,130.38,39.71]
[1725586932615,39.71,130.6,130.48,39.71]
[1725586932815,1.70962976,130.59,130.48,39.71]
[1725586933002,3.8318,130.52,130.47,1.3128]
[1725586933312,3.8318,130.52,130.48,0.05867451]
[1725586933313,0.05653964,130.51,130.48,0.05867451]
[1725586934104,0.05653964,130.51,130.48,39.76867451]
[1725586934501,0.05653964,130.51,130.48,0.05867451]
[1725586935207,23.12,130.65,130.48,39.76867451]
[1725586935413,1.67912759,130.58,130.5,39.71]
[1725586935608,0.28182759,130.57,130.48,39.71]
[1725586935907,3.8311,130.55,130.48,39.71]
[1725586936205,0.0576475,130.53,130.5,0.04984291]
[1725586938012,3.832,130.52,130.5,0.04984291]
[1725586938211,0.0576475,130.53,130.5,0.04984291]
[1725586938805,0.33953071,130.53,130.5,0.04984291]
[1725586939008,3.832,130.51,130.5,0.04984291]
[1725586939213,0.0576475,130.53,130.5,0.04984291]
[1725586940411,0.0576475,130.53,130.52,3.8317]
[1725586940619,0.0576475,130.53,130.5,39.75984291]
[1725586940920,0.0576475,130.53,130.5,43.59194291]
[1725586941206,0.0576475,130.53,130.5,0.04984291]
[1725586944205,39.71,130.55,130.42,41.1381]
[1725586944404,1.62658735,130.54,130.42,41.1381]
[1725586944616,3.8326,130.5,130.42,44.9725]
[1725586944913,3.74508639,130.51,130.42,44.9725]
[1725586945219,0.28196219,130.5,130.4,43.545]
[1725586945416,4.05494957,130.49,130.4,43.545]
[1725586945608,0.05689794,130.46,130.43,0.05704507]
[1725586946122,3.8341,130.44,130.43,0.05704507]
[1725586946308,0.05689794,130.46,130.43,0.05704507]
[1725586946616,1.74564324,130.46,130.43,0.05704507]
[1725586946820,1.46359794,130.46,130.43,0.05704507]
[1725586947319,5.29719794,130.46,130.43,0.05704507]
[1725586947911,3.8339,130.45,130.43,0.05704507]
[1725586948812,1.46359794,130.46,130.43,0.05704507]
[1725586949014,0.28206923,130.45,130.43,0.05704507]
[1725586949514,4.11616923,130.45,130.43,0.05704507]
[1725586949716,3.8341,130.45,130.43,0.05704507]
[1725586949910,3.8338,130.45,130.43,0.05704507]
[1725586950111,4.32119794,130.46,130.43,0.05704507]
[1725586950312,0.28207732,130.45,130.43,0.05704507]
[1725586951122,3.8341,130.44,130.43,0.05704507]
[1725586951710,3.8338,130.45,130.43,0.05704507]
[1725586951908,4.32119794,130.46,130.43,0.05704507]
[1725586952112,0.28206241,130.45,130.43,0.05704507]
[1725586952421,4.32119794,130.46,130.43,0.05704507]
[1725586952918,0.05689794,130.46,130.43,0.05704507]
[1725586954211,0.33893932,130.46,130.43,0.05704507]
[1725586954407,1.45039794,130.46,130.43,0.05704507]
[1725586955911,3.8338,130.45,130.43,0.05704507]
[1725586956724,1.45039794,130.46,130.43,0.05704507]
[1725586957224,0.05689794,130.46,130.43,0.05704507]
[1725586958921,0.05689794,130.46,130.44,39.81]
[1725586959119,1.3407,130.52,130.44,39.81]
[1725586959326,0.28195933,130.51,130.44,39.81]
[1725586959719,1.3407,130.52,130.44,39.81]
[1725586959914,0.28193187,130.51,130.44,39.81]
[1725586960114,1.3407,130.52,130.46,3.88603108]
[1725586960115,0.05897583,130.49,130.46,3.88603108]
[1725586960321,0.05897583,130.49,130.46,0.05273108]
[1725586961120,0.34095242,130.49,130.46,0.05273108]
[1725586961315,3.8329,130.48,130.46,0.05273108]
[1725586962221,4.11521191,130.47,130.46,0.05273108]
[1725586962420,0.28201191,130.47,130.4,1.4021]
[1725586962626,3.80042245,130.5,130.4,1.4021]
[1725586962922,40.09202422,130.49,130.37,39.81]
[1725586963117,0.28202422,130.48,130.37,39.81]
[1725586963318,0.0546339,130.44,130.41,0.0537301]
[1725586963937,3.8889339,130.44,130.41,0.0537301]
[1725586964925,0.0546339,130.44,130.41,0.0537301]
[1725586969524,3.8347,130.42,130.41,0.0537301]
[1725586969726,7.60914096,130.42,130.41,0.0537301]
[1725586969932,7.89127097,130.42,130.41,0.0537301]
[1725586970223,7.89127097,130.42,130.3,41.2491]
[1725586970224,4.05659889,130.42,130.3,41.2491]
[1725586970417,0.28215793,130.41,130.3,41.2491]
[1725586970948,1.3217,130.43,130.3,41.2491]
[1725586971226,0.04931959,130.37,130.34,0.05842496]
[1725586971419,0.05124984,130.37,130.34,0.05193407]
[1725586973233,0.05124984,130.37,130.34,3.88893407]
[1725586973525,0.05124984,130.37,130.34,0.05193407]
[1725586975330,0.05124984,130.37,130.35,33.17]
[1725586975531,3.91376682,130.42,130.35,33.17]
[1725586975922,3.91376682,130.42,130.33,34.0183]
[1725586976229,5.23431537,130.43,130.33,34.0183]
[1725586976420,0.28215171,130.42,130.33,34.0183]
[1725586976727,0.0491728,130.39,130.36,0.05409602]
[1725586976923,3.76561403,130.38,130.36,0.05409602]
[1725586977121,0.0491728,130.39,130.36,0.05409602]
[1725586977319,3.836,130.38,130.36,0.05409602]
[1725586977526,7.69816068,130.38,130.36,0.05409602]
[1725586977727,0.0491728,130.39,130.36,0.05409602]
[1725586978031,3.8361,130.37,130.36,0.05409602]
[1725586978224,7.69288643,130.37,130.36,0.05409602]
[1725586979134,3.8361,130.37,130.36,0.05409602]
[1725586979729,7.67446046,130.37,130.36,0.05409602]
[1725586980321,0.0491728,130.39,130.36,0.05409602]
[1725586980525,3.89461464,130.4,130.31,31.52409602]
[1725586980726,0.28220661,130.39,130.31,31.52409602]
[1725586981031,0.28221374,130.38,130.3,1.4391]
[1725586981229,33.17,130.4,130.28,33.17]
[1725586981430,33.17,130.38,130.26,33.17]
[1725586981638,0.05672688,130.33,130.31,0.05502972]
[1725586981932,0.05834061,130.33,130.31,0.05502972]
[1725586984028,3.89584061,130.33,130.31,0.05502972]
[1725586984228,0.05834061,130.33,130.31,0.05502972]
[1725586986032,2.746,130.4,130.31,33.22502972]
[1725586986227,4.11780542,130.39,130.32,3.8374]
[1725586986430,2.746,130.4,130.31,33.17]
[1725586986831,0.05101992,130.37,130.34,0.05064153]
[1725586988034,3.8367,130.36,130.34,0.05064153]
[1725586988244,0.05101992,130.37,130.34,0.05064153]
[1725586988734,3.88721992,130.37,130.34,0.05064153]
[1725586988933,0.05101992,130.37,130.34,0.05064153]
[1725586993247,0.33324896,130.37,130.34,0.05064153]
[1725586993658,0.05101992,130.37,130.34,0.05064153]
[1725586997458,33.22101992,130.37,130.34,0.05064153]
[1725586997664,0.28218512,130.36,130.24,33.17]
[1725586997864,33.17,130.35,130.24,34.5445]
[1725586998168,3.8376,130.33,130.26,3.8393]
[1725586998374,7.68909923,130.33,130.26,3.8393]
[1725586998571,3.85149923,130.33,130.24,34.5445]
[1725586998769,33.17,130.35,130.24,34.5445]
[1725586998971,0.04844268,130.3,130.27,0.05494937]
[1725586999164,0.04844268,130.3,130.27,0.05819943]
[1725587003867,0.04844268,130.3,130.28,33.17]
[1725587004070,0.04844268,130.3,130.28,37.0087]
[1725587004377,1.4214,130.36,130.28,33.17]
[1725587004668,3.8361,130.38,130.32,37.0074]
[1725587004867,3.8361,130.38,130.32,33.17]
[1725587005063,2.667,130.4,130.32,33.17]
[1725587005263,0.28219793,130.39,130.32,33.17]
[1725587005466,0.28219793,130.39,130.34,0.0489453]
[1725587005467,0.04858266,130.37,130.34,0.0489453]
[1725587007079,0.33079998,130.37,130.34,0.0489453]
[1725587007376,0.2822374,130.36,130.34,0.0489453]
[1725587007566,0.28225258,130.35,130.25,33.17]
[1725587007766,3.7761728,130.34,130.25,33.17]
[1725587007965,7.6132728,130.34,130.27,3.8389]
[1725587008161,3.8371,130.34,130.27,3.8389]
[1725587008367,7.71653502,130.34,130.27,3.8389]
[1725587008663,0.05516125,130.32,130.29,0.05549688]
[1725587010271,0.05516125,130.32,130.29,3.89399688]
[1725587011676,0.05516125,130.32,130.29,0.05549688]
[1725587014176,3.8381,130.31,130.29,0.05549688]
[1725587014374,0.05516125,130.32,130.29,0.05549688]
[1725587014572,33.17,130.31,130.21,33.17]
[1725587014875,33.17,130.31,130.2,0.8485]
[1725587014876,1.72302638,130.3,130.2,2.1753]
[1725587015067,0.28232638,130.29,130.2,2.1753]
[1725587015267,1.62292638,130.29,130.2,2.1753]
[1725587015466,0.05764865,130.26,130.23,0.05566105]
[1725587015870,3.83796727,130.25,130.23,0.05566105]
[1725587016379,33.22764865,130.26,130.23,0.05566105]
[1725587016684,0.28246527,130.25,130.15,35.4547]
[1725587016883,33.17,130.24,130.15,1.3808]
[1725587017182,33.45251269,130.23,130.13,3.76457402]
[1725587017374,3.8411,130.21,130.13,3.843]
[1725587017574,0.05222288,130.18,130.16,0.04925402]
[1725587022083,0.05222288,130.18,130.17,37.012]
[1725587022289,1.3639,130.24,130.17,33.17]
[1725587022478,1.3639,130.24,130.16,1.4078]
[1725587023083,1.3639,130.24,130.18,3.8417]
[1725587023287,0.05139944,130.22,130.2,0.05051706]
[1725587024285,1.4082,130.27,130.21,33.17]
[1725587024687,5.2473,130.27,130.21,33.17]
[1725587024887,5.1829674,130.27,130.21,33.17]
[1725587025390,0.05898035,130.25,130.23,0.04926306]
[1725587028691,0.28244767,130.26,130.16,1.5164]
[1725587028886,0.28244767,130.26,130.17,33.17]
[1725587029094,3.8398,130.25,130.17,33.17]
[1725587029294,5.1833,130.25,130.17,33.17]
[1725587029594,0.04968461,130.22,130.2,0.0578135]
[1725587030692,3.89028461,130.22,130.2,0.0578135]
[1725587031190,3.8409,130.21,130.15,3.8426]
[1725587031388,34.4865,130.24,130.14,33.17]
[1725587031697,3.8411,130.21,130.15,3.8424]
[1725587032395,0.05863933,130.19,130.17,0.05745737]
[1725587032587,0.04898621,130.19,130.17,0.05745737]
[1725587039390,0.04898621,130.19,130.17,3.89945737]
[1725587039594,0.04898621,130.19,130.17,0.05745737]
[1725587039802,0.04898621,130.19,130.17,33.22745737]
[1725587040100,0.04898621,130.19,130.18,3.8417]
[1725587040800,0.04898621,130.19,130.17,33.22745737]
[1725587041004,0.04898621,130.19,130.17,0.05745737]
[1725587042287,0.04898621,130.19,130.17,3.89925737]
[1725587043197,0.04898621,130.19,130.17,0.05745737]
[1725587046401,0.04898621,130.19,130.07,0.2154]
[1725587046599,0.04898621,130.19,130.09,33.17]
[1725587046600,37.00607293,130.19,130.09,33.17]
[1725587046800,1.3279,130.18,130.09,33.17]
[1725587047298,3.8425,130.16,130.1,3.844]
[1725587047499,3.8425,130.16,130.12,0.05517001]
[1725587047500,0.05416722,130.15,130.12,0.05517001]
[1725587048706,3.89706722,130.15,130.12,0.05517001]
[1725587048903,0.05416722,130.15,130.12,0.05517001]
[1725587049996,3.8431,130.14,130.12,0.05517001]
[1725587051406,3.89686722,130.15,130.12,0.05517001]
[1725587052600,0.05416722,130.15,130.12,0.05517001]
[1725587054197,0.05416722,130.15,130.12,3.94437087]
[1725587054602,0.05416722,130.15,130.14,3.8429]
[1725587055602,1.4361,130.21,130.16,3.8423]
[1725587055802,1.4361,130.21,130.13,34.4739]
[1725587056407,3.8414,130.2,130.13,34.4739]
[1725587056710,3.8414,130.2,130.15,0.05252951]
[1725587056711,0.0484304,130.18,130.15,0.05252951]
[1725587057510,0.0484304,130.18,130.16,3.8423]
[1725587057710,0.0484304,130.18,130.15,33.22252951]
[1725587058302,0.0484304,130.18,130.17,3.842]
[1725587058706,33.17,130.26,130.17,3.842]
[1725587058707,33.17,130.28,130.17,33.17]
[1725587058912,3.8396,130.26,130.2,3.841]
[1725587059105,7.7391788,130.26,130.2,3.841]
[1725587059299,3.8396,130.26,130.2,3.841]
[1725587059812,0.05303129,130.24,130.22,0.05228661]
[1725587064516,0.05303129,130.24,130.23,3.8403]
[1725587064923,0.05303129,130.24,130.22,3.89278661]
[1725587065828,0.05303129,130.24,130.22,0.05228661]
[1725587066522,0.05303129,130.24,130.23,3.8403]
[1725587067523,1.3314,130.29,130.25,3.8395]
[1725587067827,1.3314,130.29,130.23,33.17]
[1725587068020,1.3462,130.32,130.23,33.17]
[1725587068422,33.17,130.36,130.26,33.17]
[1725587068619,3.8371,130.34,130.26,33.17]
[1725587068817,0.05681838,130.32,130.3,0.0579683]
[1725587069022,0.34068162,130.32,130.3,0.05890662]
[1725587069222,0.05836893,130.32,130.3,0.05890662]
[1725587069520,0.34068197,130.32,130.3,0.05890662]
[1725587069823,0.05836893,130.32,130.3,0.05890662]
[1725587074721,0.34065578,130.32,130.23,33.17]
[1725587074927,33.17,130.34,130.23,33.17]
[1725587075127,0.28231632,130.33,130.23,33.17]
[1725587075430,33.45231868,130.32,130.21,33.17]
[1725587075624,1.63351868,130.31,130.24,3.84]
[1725587075824,0.05208729,130.29,130.26,0.05253827]
[1725587076124,3.81666069,130.29,130.26,0.05253827]
[1725587076529,0.05208729,130.29,130.26,0.05253827]
[1725587077529,3.93121704,130.29,130.26,0.05253827]
[1725587080320,0.05208729,130.29,130.26,0.05253827]
[1725587081235,0.05208729,130.29,130.26,3.89193827]
[1725587081436,3.93813102,130.29,130.26,0.05253827]
[1725587081624,0.05208729,130.29,130.26,0.05253827]
[1725587082337,0.05208729,130.29,130.27,26.56]
[1725587082728,0.05208729,130.29,130.28,3.8388]
[1725587085732,0.05208729,130.29,130.27,3.8391]
[1725587086629,0.05208729,130.29,130.26,0.05253827]
[1725587086830,0.05208729,130.29,130.26,3.89183827]
[1725587088635,0.05208729,130.29,130.27,3.8391]
[1725587095240,3.92456318,130.29,130.26,3.89183827]
[1725587095445,0.05208729,130.29,130.26,3.89183827]
[1725587096034,3.82356544,130.29,130.26,3.89183827]
[1725587101452,7.89686544,130.29,130.26,0.05253827]
[1725587102141,7.89686544,130.29,130.26,3.89183827]
[1725587102334,2.82288729,130.29,130.26,0.05253827]
[1725587102537,1.45098729,130.29,130.26,0.05253827]
[1725587103244,5.3033165,130.29,130.26,0.05253827]
[1725587103848,0.05208729,130.29,130.26,3.93059832]
[1725587104044,0.05208729,130.29,130.27,26.56]
[1725587104240,0.05208729,130.29,130.27,30.30748563]
[1725587104439,1.4296,130.34,130.27,30.30748563]
[1725587104745,1.4296,130.34,130.29,26.56]
[1725587104938,1.4296,130.34,130.31,3.8377]
[1725587105133,26.56,130.4,130.31,26.56]
[1725587105338,1.60680334,130.39,130.31,26.56]
[1725587105541,0.05595431,130.36,130.34,0.05864542]
[1725587107538,3.89255431,130.36,130.34,0.05864542]
[1725587107739,26.61595431,130.36,130.26,26.56]
[1725587108044,2.8091,130.35,130.26,30.42676717]
[1725587108545,3.8371,130.34,130.28,3.8386]
[1725587108742,0.04943971,130.32,130.3,0.05525402]
[1725587109644,3.80651589,130.31,130.3,0.05525402]
[1725587109848,3.93476932,130.3,130.23,1.389]
[1725587110052,26.56,130.34,130.24,26.56]
[1725587110248,0.28231274,130.33,130.26,26.56]
[1725587110437,2.8091,130.35,130.28,3.8385]
[1725587110642,26.84229225,130.34,130.23,1.662]
[1725587110843,0.04890715,130.3,130.27,0.05042496]
[1725587111136,3.82662361,130.3,130.27,0.04905673]
[1725587111339,0.04890715,130.3,130.27,0.04905673]
[1725587111537,3.90980982,130.29,130.27,0.04905673]
[1725587112354,0.04890715,130.3,130.27,0.04905673]
[1725587112841,0.04890715,130.3,130.21,26.56]
[1725587112842,30.54526933,130.3,130.21,26.56]
[1725587113038,3.8388,130.28,130.2,26.56]
[1725587113248,3.80845345,130.27,130.2,26.56]
[1725587113643,3.8392,130.27,130.2,26.56]
[1725587113845,0.05738438,130.25,130.22,0.05794441]
[1725587114954,0.05738438,130.25,130.14,2.1298]
[1725587114955,1.49048438,130.25,130.14,2.1298]
[1725587115147,27.9931,130.25,130.15,26.56]
[1725587115554,0.28249174,130.24,130.17,3.842]
[1725587115743,27.9931,130.25,130.17,3.842]
[1725587116050,0.05614753,130.22,130.2,0.05573763]
[1725587116652,0.05614753,130.22,130.15,33.2]
[1725587116853,3.8409,130.21,130.14,1.3689]
[1725587117245,1.3848,130.23,130.14,1.3689]
[1725587117642,1.3848,130.23,130.12,37.08920086]
[1725587117853,1.3848,130.23,130.17,0.04903904]
[1725587117854,33.25581252,130.2,130.17,0.04903904]
[1725587118053,33.2,130.2,130.1,34.5692]
[1725587118546,33.2,130.2,130.11,3.8437]
[1725587118751,0.28257547,130.19,130.08,33.2]
[1725587119051,0.05731736,130.15,130.12,0.05897223]
[1725587119257,0.05753094,130.15,130.12,33.25733734]
[1725587119558,0.05753094,130.15,130.13,3.843]
[1725587120454,0.05753094,130.15,130.14,3.8429]
[1725587121957,0.05753094,130.15,130.13,3.8432]
[1725587122159,0.05753094,130.15,130.12,0.05733734]
[1725587122758,1.43503094,130.15,130.12,0.05733734]
[1725587128059,5.27773094,130.15,130.12,0.05733734]
[1725587128250,1.43503094,130.15,130.12,0.05733734]
[1725587128451,0.05753094,130.15,130.12,0.05733734]
[1725587129261,0.05753094,130.15,130.13,3.8432]
[1725587129765,0.05753094,130.15,130.12,0.05733734]
[1725587129958,0.05753094,130.15,130.12,1.41613734]
[1725587130444,1.3011,130.21,130.13,36.98948689]
[1725587131151,1.3011,130.21,130.13,33.2]
[1725587131552,0.05859718,130.18,130.16,0.05899673]
[1725587136455,0.05859718,130.18,130.17,3.842]
[1725587139162,5.2074,130.24,130.16,26.56]
[1725587139754,5.2074,130.24,130.19,3.8413]
[1725587139958,5.2074,130.24,130.16,26.56]
[1725587140162,0.05630951,130.21,130.19,0.05237121]
[1725587140359,0.05630951,130.21,130.2,3.8411]
[1725587140669,0.05630951,130.21,130.2,30.4011]
[1725587142276,1.3024,130.27,130.22,3.8403]
[1725587142457,1.3024,130.27,130.2,30.48881694]
[1725587143166,0.05562433,130.25,130.22,0.05197231]
[1725587143367,0.05562433,130.25,130.23,3.8401]
[1725587143963,0.05562433,130.25,130.22,0.05197231]
[1725587144567,3.89532433,130.25,130.22,0.05197231]
[1725587145671,0.05562433,130.25,130.22,0.05197231]
[1725587149262,3.84,130.24,130.16,26.56]
[1725587149468,26.56,130.26,130.16,26.56]
[1725587149772,0.28248302,130.25,130.16,26.56]
[1725587149977,3.8405,130.23,130.17,3.8418]
[1725587150167,3.93248578,130.22,130.17,3.8418]
[1725587150473,0.05502339,130.21,130.19,0.0558615]
[1725587150667,26.56,130.2,130.12,1.3588]
[1725587151268,3.8417,130.19,130.13,3.843]
[1725587151766,0.0488191,130.17,130.15,0.05261513]
[1725587155472,0.0488191,130.17,130.1,107.35526858]
[1725587155677,0.0488191,130.17,130.1,80.79526858]
[1725587156182,26.6088191,130.17,130.08,27.9927]
[1725587156378,0.05262148,130.14,130.11,0.05599371]
[1725587158682,0.05262148,130.14,130.12,26.56]
[1725587158980,0.05262148,130.14,130.13,3.8432]
[1725587159187,0.05262148,130.14,130.13,7.65276811]
[1725587159571,0.05262148,130.14,130.13,3.8432]
[1725587161375,0.05262148,130.14,130.11,3.89959371]
[1725587161571,0.05262148,130.14,130.11,0.05599371]
[1725587161973,0.05262148,130.14,130.12,3.8435]
[1725587162673,0.05262148,130.14,130.11,3.89969371]
[1725587163276,0.05262148,130.14,130.11,0.05599371]
[1725587163780,3.89582148,130.14,130.11,0.05599371]
[1725587164773,0.05262148,130.14,130.11,0.05599371]
[1725587165083,1.3923,130.13,130.05,26.56]
[1725587165283,1.3923,130.13,130.05,30.33209057]
[1725587165794,27.9523,130.13,130.05,26.56]
[1725587165983,0.05571022,130.1,130.08,0.0550838]
[1725587166287,3.89981022,130.1,130.08,0.0550838]
[1725587166682,0.05571022,130.1,130.08,0.0550838]
[1725587166872,0.05571022,130.1,130.01,26.56]
[1725587166873,3.8447,130.08,130.01,26.56]
[1725587167081,3.8447,130.08,130.01,30.49589389]
[1725587167380,3.8447,130.08,130.02,3.8463]
[1725587167776,9.0952677,130.08,130.02,3.8463]
[1725587167986,0.04993192,130.06,130.04,0.05180605]
[1725587170893,3.89523192,130.06,130.04,0.05180605]
[1725587171292,0.04993192,130.06,130.04,0.05180605]
[1725587172685,0.04993192,130.06,130.04,3.89750605]
[1725587172882,0.04993192,130.06,130.04,0.05180605]
[1725587180290,0.04993192,130.06,129.98,26.56]
[1725587180490,1.3729,130.07,129.98,30.34104684]
[1725587181292,0.04932936,130.04,130.02,3.8464]
[1725587181492,0.04932936,130.04,129.98,26.56]
[1725587182202,0.04932936,130.04,130.0,3.8468]
[1725587182794,0.04932936,130.04,129.98,30.4491537]
[1725587183591,0.04932936,130.04,130.01,26.56]
[1725587185402,0.04932936,130.04,129.99,26.56]
[1725587185999,0.04932936,130.04,129.97,27.9486]
[1725587187103,0.04932936,130.04,129.99,26.56]
[1725587187295,0.04932936,130.04,130.0,3.83443345]
[1725587187490,0.04932936,130.04,130.0,30.39443345]
[1725587187695,0.04932936,130.04,130.02,26.56]
[1725587187896,0.04932936,130.04,130.02,30.47523126]
[1725587188301,30.7016,130.14,130.02,30.47523126]
[1725587188512,4.1416,130.14,130.07,26.56]
[1725587188800,26.56,130.2,130.11,26.56]
[1725587189002,0.28265489,130.19,130.11,26.56]
[1725587189397,0.05212045,130.16,130.14,0.0542996]
[1725587189902,3.89472045,130.16,130.14,0.0542996]
[1725587190097,26.61212045,130.16,130.07,26.56]
[1725587190294,26.56,130.15,130.05,26.56]
[1725587190606,8.97220256,130.14,130.08,3.8445]
[1725587190807,5.12920256,130.14,130.08,3.8445]
[1725587191005,0.05412969,130.12,130.08,3.8445]
[1725587191708,0.05412969,130.12,130.09,3.8443]
[1725587192298,0.05412969,130.12,130.08,3.8445]
[1725587193405,0.05412969,130.12,130.07,3.845]
[1725587193705,0.05224053,130.11,130.07,3.845]
[1725587193913,0.05224053,130.11,130.05,26.56]
[1725587194301,0.05224053,130.11,130.07,26.56]
[1725587194514,0.05224053,130.11,130.05,26.56]
[1725587194708,3.89624053,130.11,130.06,3.8453]
[1725587196018,3.8442,130.1,130.05,3.8455]
[1725587196803,3.8442,130.1,130.06,3.8453]
[1725587197003,0.05037119,130.09,130.06,3.8453]
[1725587197201,0.05037119,130.09,130.02,30.41328627]
[1725587197411,0.05037119,130.09,130.05,3.8455]
[1725587199405,3.89507119,130.09,130.04,3.8458]
[1725587199606,1.40008387,130.08,130.04,3.8458]
[1725587200116,1.40008387,130.08,130.02,3.8464]
[1725587200412,0.05886451,130.06,130.02,3.8464]
[1725587200713,0.05886451,130.06,130.03,3.8462]
[1725587203604,0.05886451,130.06,130.04,26.56]
[1725587203806,1.3603,130.13,130.04,26.56]
[1725587203807,2.6682,130.13,130.04,26.56]
[1725587204007,2.6682,130.13,130.06,26.56]
[1725587204810,2.6682,130.13,130.08,0.05560041]
[1725587205113,26.61195334,130.11,129.88,7.42279205]
[1725587205306,0.28273123,130.12,129.88,7.42279205]
[1725587205307,26.56,130.12,130.03,26.56]
[1725587205511,26.56,130.12,130.03,30.42615769]
[1725587205702,3.8441,130.11,130.06,3.8451]
[1725587205902,3.8441,130.11,130.03,30.42615769]
[1725587206103,0.0586044,130.08,130.05,3.8454]
[1725587207222,0.0586044,130.08,130.04,3.8458]
[1725587207924,0.0586044,130.08,130.03,30.4062]
[1725587208108,0.0586044,130.08,130.03,3.8462]
[1725587209408,3.90578676,130.07,130.03,3.8462]
[1725587213721,7.75078676,130.07,130.03,3.8462]
[1725587214121,7.75078676,130.07,130.02,3.8464]
[1725587214327,3.90313396,130.06,129.99,26.56]
[1725587214723,3.77661856,130.05,130.01,3.8467]
[1725587215117,7.62221856,130.05,130.01,3.8467]
[1725587215316,7.62221856,130.05,130.0,3.847]
[1725587215616,0.05341356,130.04,130.0,3.847]
[1725587216211,3.8462,130.03,129.99,3.8473]
[1725587216415,3.8462,130.03,129.97,1.3601]
[1725587216416,0.05341356,130.04,129.97,1.3601]
[1725587216616,0.05294722,130.02,129.97,27.9201]
[1725587216828,0.05294722,130.02,129.98,3.83789621]
[1725587217122,0.05294722,130.02,129.99,3.8471]
[1725587217510,0.05294722,130.02,129.98,3.83789621]
[1725587217921,0.05294722,130.02,129.99,3.8473]
[1725587220222,0.05294722,130.02,129.99,26.56]
[1725587220423,4.1525,130.07,129.97,5.1572074]
[1725587220424,1.4236,130.07,130.01,26.56]
[1725587220638,5.31113304,130.07,130.01,26.56]
[1725587220925,5.31113304,130.07,129.97,5.9656074]
[1725587220926,5.31113304,130.07,129.99,26.56]
[1725587221426,8.14473304,130.07,129.99,26.56]
[1725587221628,8.14473304,130.07,130.02,0.05149319]
[1725587221629,0.05091007,130.04,130.02,0.05149319]
[1725587225326,0.05091007,130.04,129.91,9.47834361]
[1725587225529,26.56,130.05,129.94,26.56]
[1725587226040,8.14473304,130.07,129.98,26.56]
[1725587226229,0.04909604,130.04,130.0,26.56]
[1725587226430,0.05330939,130.03,130.0,26.56]
[1725587227024,0.05330939,130.03,130.0,30.407]
[1725587227224,0.05330939,130.03,129.98,26.56]
[1725587228432,0.05330939,130.03,130.0,3.8468]
[1725587228630,0.05330939,130.03,129.98,26.56]
[1725587229539,0.05330939,130.03,130.0,3.8469]
[1725587231131,0.05330939,130.03,130.01,3.8467]
[1725587231533,0.05330939,130.03,130.02,3.8465]
[1725587232128,2.7597,130.12,130.01,26.56]
[1725587232331,2.7597,130.12,130.05,26.56]
[1725587233131,0.05686922,130.1,130.07,0.05422787]
[1725587235444,26.61686922,130.1,130.07,0.05422787]
[1725587235641,0.28280882,130.09,130.07,0.05422787]
[1725587235934,26.61686922,130.1,130.07,0.05422787]
[1725587236143,3.8446,130.09,130.07,0.05422787]
[1725587236334,26.61686922,130.1,130.07,0.05422787]
[1725587236839,3.8444,130.09,130.07,0.05422787]
[1725587237035,26.61686922,130.1,130.07,0.05422787]
[1725587237439,3.8447,130.08,130.07,0.05422787]
[1725587238140,3.8444,130.09,130.07,0.05422787]
[1725587239746,0.05686922,130.1,130.07,0.05422787]
[1725587239747,3.8447,130.08,130.07,0.05422787]
[1725587241944,3.8445,130.09,130.07,0.05422787]
[1725587242150,26.61686922,130.1,130.07,0.05422787]
[1725587242151,0.05686922,130.1,130.07,0.05422787]
[1725587243041,0.05686922,130.1,130.07,3.89902787]
[1725587244049,0.05686922,130.1,130.07,0.05422787]
[1725587244751,0.05686922,130.1,130.09,3.8444]
[1725587245136,0.28269074,130.18,130.09,26.56]
[1725587245537,0.28265521,130.17,130.09,26.56]
[1725587245748,27.9677,130.19,130.09,26.56]
[1725587245941,0.28264852,130.18,130.09,26.56]
[1725587246142,0.0496842,130.15,130.12,0.05502947]
[1725587247646,0.0496842,130.15,130.13,3.843]